Workbook

Sheet ReadMe-Orientation
A4: Author | B4: Dennis Buckmaster, Professor & Dean's Fellow for Digital Agriculture
A5: Affiliation | B5: Purdue University, Department of Agricultural & Biological Engineering
A6: Date | B6: November 2020, updated December, 2021
A7: URL to acquire | C7: https://engineering.purdue.edu/~dbuckmas/outreach/PCP.xlsm
A8: Orientation video | C8: https://youtu.be/s5aUeZfmozI
A9: Brief site post | C9: https://ag.purdue.edu/digital-ag-resources/?p=7463
A10: Related tools: | B10: Fertilizer tools | E10: https://engineering.purdue.edu/~dbuckmas/outreach/Fertilizer_tools.xlsx
B11: Phosphorus cost comparison | E11: https://engineering.purdue.edu/~dbuckmas/outreach/Purdue_Phosphorus_Cost_Calculator.xlsx
A13: You should read ALL of the panels on this page to use this tool to its fullest potential.

Sheet Fields
A1: FIELDS LIST | D1: Optional information for record keeping …
A2: Index | B2: Label | C2: Area | D2: NCPI | E2: Owned or Rented | F2: Coordinate | G2: Map link | H2: Plant Date | I2: Spray date 1 | J2: Spray date 2 | K2: Harvest Date | L2: MC at harvest | M2: Soil sample date | N2: Misc. notes | O2: Boundary
C3: (ac) | D3: (index) | E3: (1 owned, 0 rented) | F3: (GPS of center) | O3: (GeoJSON)
A4: 1 | B4: testing123_123 | C4: 123 | D4: 95 | E4: 1 | F4: 40.46842546569507, -86.99335322285127 | G4: https://www.google.com/maps/place/40%C2%B028'06.2%22N+86%C2%B059'35.1%22W/@40.4684051,-86.9952737,850m/data=!3m2!1e3!4b1!4m6!3m5!1s0x0:0x0!7e2!8m2!3d40.4684006!4d-86.9930853 | H4: 2020-04-30 | I4: 2020-03-15 | J4: 5.20/20 | K4: 2020-10-15 | L4: 18
A5: 2 | B5: north40_40 | C5: 40 | D5: 108 | E5: 1
A6: 3 | B6: back20a_15 | C6: 15 | D6: 100 | E6: 1
A7: 4 | B7: back20b_5 | C7: 5 | D7: 120 | E7: 1
A8: 5 | B8: Big1_244 | C8: 244 | D8: 98 | E8: 1
A9: 6 | B9: Jones_35 | C9: 35 | D9: 110 | E9: 0
A10: 7
A11: 8
A12: 9
A13: 10
A14: 11
A15: 12
A16: 13
A17: 14
A18: 15
A19: 16
A20: 17
A21: 18
A22: 19
A23: 20
A24: 21
A25: 22
A26: 23
A27: 24
A28: 25
A29: 26
A30: 27
A31: 28
A32: 29
A33: 30
A34: 31
A35: 32
A36: 33
A37: 34
A38: 35
A39: 36
A40: 37
A41: 38
A42: 39
A43: 40
A44: 41
A45: 42
A46: 43
A47: 44
A48: 45
A49: 46
A50: 47
A51: 48
A52: 49
A53: 50
A54: 51
A55: 52
A56: 53
A57: 54
A58: 55
A59: 56
A60: 57
A61: 58
A62: 59
A63: 60
A64: 61
A65: 62
A66: 63
A67: 64
A68: 65
A69: 66
A70: 67
A71: 68
A72: 69
A73: 70

Sheet Inputs
A1: SEEDS LIST | K1: Tallying the needs
A2: Index | B2: Label | C2: Price | D2: Rate | E2: Cost | F2: Maturity Info 1 | G2: Maturity Info 2 | H2: Treatment | K2: Area | L2: Amount
C3: ($/100000 seeds) | D3: (seeds/ac) | E3: ($/ac) | F3: (GDD to blacklayer or Maturity Group) | G3: (GDD to silking or GDD to full maturity) | K3: (ac) | L3: (100K seeds)
A4: 1 | B4: Becks1_30_I | C4: 300 | D4: 30000 | E4: =C4/100000*D4 -> 90 | F4: 2200 | G4: 1300 | H4: Ilevo | K4: =SUMIF('By-Field'!$D$15:$E$15,"="&Inputs!B4,'By-Field'!$D$49:$F$49) -> 40 | L4: =K4*D4/100000 -> 12
A5: 2 | B5: Becks1-25_I | C5: 300 | D5: 25000 | E5: 75 | F5: 2200 | G5: 1300 | H5: Ilevo | K5: =SUMIF('By-Field'!$D$15:$E$15,"="&Inputs!B5,'By-Field'!$D$49:$F$49) -> 0 | L5: 0
A6: 3 | B6: Xpensive2_32_N | C6: 425 | D6: 32000 | E6: 136 | F6: 2600 | G6: 1600 | H6: Neo | K6: =SUMIF('By-Field'!$D$15:$E$15,"="&Inputs!B6,'By-Field'!$D$49:$F$49) -> 0 | L6: 0
A7: 4 | B7: Xpensive2-28_N | C7: 425 | D7: 28000 | E7: 119 | F7: 2600 | G7: 1600 | H7: Neo | K7: =SUMIF('By-Field'!$D$15:$E$15,"="&Inputs!B7,'By-Field'!$D$49:$F$49) -> 244 | L7: 68.32
A8: 5 | B8: Xpensive2_32 | C8: 400 | D8: 32000 | E8: 128 | F8: 2600 | G8: 1600 | H8: none | K8: =SUMIF('By-Field'!$D$15:$E$15,"="&Inputs!B8,'By-Field'!$D$49:$F$49) -> 0 | L8: 0
A9: 5 | B9: Xpensive2-28 | C9: 400 | D9: 28000 | E9: 112 | F9: 2600 | G9: 1600 | H9: none | K9: =SUMIF('By-Field'!$D$15:$E$15,"="&Inputs!B9,'By-Field'!$D$49:$F$49) -> 0 | L9: 0
A10: 7 | E10: 0 | K10: =SUMIF('By-Field'!$D$15:$E$15,"="&Inputs!B10,'By-Field'!$D$49:$F$49) -> 0 | L10: 0
A11: 8 | E11: 0 | K11: =SUMIF('By-Field'!$D$15:$E$15,"="&Inputs!B11,'By-Field'!$D$49:$F$49) -> 0 | L11: 0
A12: 9 | E12: 0 | K12: =SUMIF('By-Field'!$D$15:$E$15,"="&Inputs!B12,'By-Field'!$D$49:$F$49) -> 0 | L12: 0
A13: 10 | B13: Beans1 | C13: 100 | D13: 80000 | E13: 80 | K13: =SUMIF('By-Field'!$D$15:$E$15,"="&Inputs!B13,'By-Field'!$D$49:$F$49) -> 0 | L13: 0
A14: 11 | E14: 0 | K14: =SUMIF('By-Field'!$D$15:$E$15,"="&Inputs!B14,'By-Field'!$D$49:$F$49) -> 0 | L14: 0
A15: 12 | E15: 0 | K15: =SUMIF('By-Field'!$D$15:$E$15,"="&Inputs!B15,'By-Field'!$D$49:$F$49) -> 0 | L15: 0
A16: 13 | E16: 0 | K16: =SUMIF('By-Field'!$D$15:$E$15,"="&Inputs!B16,'By-Field'!$D$49:$F$49) -> 0 | L16: 0
A17: 14 | E17: 0 | K17: =SUMIF('By-Field'!$D$15:$E$15,"="&Inputs!B17,'By-Field'!$D$49:$F$49) -> 0 | L17: 0
A18: 15 | E18: 0 | K18: =SUMIF('By-Field'!$D$15:$E$15,"="&Inputs!B18,'By-Field'!$D$49:$F$49) -> 0 | L18: 0
A19: 16 | E19: 0 | K19: =SUMIF('By-Field'!$D$15:$E$15,"="&Inputs!B19,'By-Field'!$D$49:$F$49) -> 0 | L19: 0
A20: 17 | E20: 0 | K20: =SUMIF('By-Field'!$D$15:$E$15,"="&Inputs!B20,'By-Field'!$D$49:$F$49) -> 0 | L20: 0
A21: 18 | E21: 0 | K21: =SUMIF('By-Field'!$D$15:$E$15,"="&Inputs!B21,'By-Field'!$D$49:$F$49) -> 0 | L21: 0
A22: 19 | E22: 0 | K22: =SUMIF('By-Field'!$D$15:$E$15,"="&Inputs!B22,'By-Field'!$D$49:$F$49) -> 0 | L22: 0
A23: 20 | E23: 0 | K23: =SUMIF('By-Field'!$D$15:$E$15,"="&Inputs!B23,'By-Field'!$D$49:$F$49) -> 0 | L23: 0
A24: 21 | E24: 0 | K24: =SUMIF('By-Field'!$D$15:$E$15,"="&Inputs!B24,'By-Field'!$D$49:$F$49) -> 0 | L24: 0
A25: 22 | E25: 0 | K25: =SUMIF('By-Field'!$D$15:$E$15,"="&Inputs!B25,'By-Field'!$D$49:$F$49) -> 0 | L25: 0
A26: 23 | E26: 0 | K26: =SUMIF('By-Field'!$D$15:$E$15,"="&Inputs!B26,'By-Field'!$D$49:$F$49) -> 0 | L26: 0
A27: 24 | E27: 0 | K27: =SUMIF('By-Field'!$D$15:$E$15,"="&Inputs!B27,'By-Field'!$D$49:$F$49) -> 0 | L27: 0
A28: 25 | E28: 0 | K28: =SUMIF('By-Field'!$D$15:$E$15,"="&Inputs!B28,'By-Field'!$D$49:$F$49) -> 0 | L28: 0
A29: 26 | E29: 0 | K29: =SUMIF('By-Field'!$D$15:$E$15,"="&Inputs!B29,'By-Field'!$D$49:$F$49) -> 0 | L29: 0
A30: 27 | E30: 0 | K30: =SUMIF('By-Field'!$D$15:$E$15,"="&Inputs!B30,'By-Field'!$D$49:$F$49) -> 0 | L30: 0
A31: 28 | E31: 0 | K31: =SUMIF('By-Field'!$D$15:$E$15,"="&Inputs!B31,'By-Field'!$D$49:$F$49) -> 0 | L31: 0
A32: 29 | E32: 0 | K32: =SUMIF('By-Field'!$D$15:$E$15,"="&Inputs!B32,'By-Field'!$D$49:$F$49) -> 0 | L32: 0
A33: 30 | E33: 0 | K33: =SUMIF('By-Field'!$D$15:$E$15,"="&Inputs!B33,'By-Field'!$D$49:$F$49) -> 0 | L33: 0
A41: FERTILIZER LIST | C41: See "FertCosts" sheet to determine which types and rates would economically meet nutrient goals. | K41: Tallying the needs
A42: Index | B42: Label | C42: Price | D42: Rate | E42: Cost | F42: N | G42: P2O5 | H42: K20 | I42: S | K42: Area | L42: Amount
C43: ($/ton) | D43: (lb/ac) | E43: ($/ac) | F43: (%) | G43: (%) | H43: (%) | I43: (%) | K43: (ac) | L43: (tons)
A44: 1 | B44: nul - nothing | C44: 0 | D44: 0 | E44: 0 | K44: =SUMIF('By-Field'!$D$16:$E$16,"="&Inputs!B44,'By-Field'!$D$49:$F$49) + SUMIF('By-Field'!$D$17:$F$17,"="&Inputs!B44,'By-Field'!$D$49:$F$49) + SUMIF('By-Field'!$D$18:$F$18,"="&Inputs!B44,'By-Field'!$D$49:$F$49) -> 0 | L44: =K44*D44/2000 -> 0
A45: 2 | B45: 82-0-0-0_120 | C45: 800 | D45: 120 | E45: =D45*C45/2000 -> 48 | F45: 82 | G45: 0 | H45: 0 | I45: 0 | K45: =SUMIF('By-Field'!$D$16:$E$16,"="&Inputs!B45,'By-Field'!$D$49:$F$49) + SUMIF('By-Field'!$D$17:$F$17,"="&Inputs!B45,'By-Field'!$D$49:$F$49) + SUMIF('By-Field'!$D$18:$F$18,"="&Inputs!B45,'By-Field'!$D$49:$F$49) -> 0 | L45: 0
A46: 3 | B46: 82-0-0-0_150 | C46: 800 | D46: 150 | E46: 60 | F46: 82 | G46: 0 | H46: 0 | I46: 0 | K46: =SUMIF('By-Field'!$D$16:$E$16,"="&Inputs!B46,'By-Field'!$D$49:$F$49) + SUMIF('By-Field'!$D$17:$F$17,"="&Inputs!B46,'By-Field'!$D$49:$F$49) + SUMIF('By-Field'!$D$18:$F$18,"="&Inputs!B46,'By-Field'!$D$49:$F$49) -> 284 | L46: 21.3
A47: 4 | B47: 18-46-0-0_40 | C47: 600 | D47: 40 | E47: 12 | F47: 18 | G47: 46 | H47: 0 | I47: 0 | K47: =SUMIF('By-Field'!$D$16:$E$16,"="&Inputs!B47,'By-Field'!$D$49:$F$49) + SUMIF('By-Field'!$D$17:$F$17,"="&Inputs!B47,'By-Field'!$D$49:$F$49) + SUMIF('By-Field'!$D$18:$F$18,"="&Inputs!B47,'By-Field'!$D$49:$F$49) -> 0 | L47: 0
A48: 5 | B48: 18-46-0-0_60 | C48: 600 | D48: 60 | E48: 18 | F48: 18 | G48: 46 | H48: 0 | I48: 0 | K48: =SUMIF('By-Field'!$D$16:$E$16,"="&Inputs!B48,'By-Field'!$D$49:$F$49) + SUMIF('By-Field'!$D$17:$F$17,"="&Inputs!B48,'By-Field'!$D$49:$F$49) + SUMIF('By-Field'!$D$18:$F$18,"="&Inputs!B48,'By-Field'!$D$49:$F$49) -> 289 | L48: 8.67
A49: 6 | B49: 0-0-60-0_50 | C49: 602 | D49: 50 | E49: 15.05 | F49: 0 | G49: 0 | H49: 60 | I49: 0 | K49: =SUMIF('By-Field'!$D$16:$E$16,"="&Inputs!B49,'By-Field'!$D$49:$F$49) + SUMIF('By-Field'!$D$17:$F$17,"="&Inputs!B49,'By-Field'!$D$49:$F$49) + SUMIF('By-Field'!$D$18:$F$18,"="&Inputs!B49,'By-Field'!$D$49:$F$49) -> 5 | L49: 0.125
A50: 7 | B50: 28-0-0-0_70 | C50: 360 | D50: 70 | E50: 12.6 | F50: 28 | G50: 0 | H50: 0 | I50: 0 | K50: =SUMIF('By-Field'!$D$16:$E$16,"="&Inputs!B50,'By-Field'!$D$49:$F$49) + SUMIF('By-Field'!$D$17:$F$17,"="&Inputs!B50,'By-Field'!$D$49:$F$49) + SUMIF('By-Field'!$D$18:$F$18,"="&Inputs!B50,'By-Field'!$D$49:$F$49) -> 284 | L50: 9.94
A51: 8 | B51: 46-0-0-0_40 | C51: 550 | D51: 40 | E51: 11 | F51: 46 | G51: 0 | H51: 0 | I51: 0 | K51: =SUMIF('By-Field'!$D$16:$E$16,"="&Inputs!B51,'By-Field'!$D$49:$F$49) + SUMIF('By-Field'!$D$17:$F$17,"="&Inputs!B51,'By-Field'!$D$49:$F$49) + SUMIF('By-Field'!$D$18:$F$18,"="&Inputs!B51,'By-Field'!$D$49:$F$49) -> 0 | L51: 0
A52: 9 | B52: 0-0-0-17_20 | C52: 58 | D52: 20 | E52: 0.58 | F52: 0 | G52: 0 | H52: 0 | I52: 17 | K52: =SUMIF('By-Field'!$D$16:$E$16,"="&Inputs!B52,'By-Field'!$D$49:$F$49) + SUMIF('By-Field'!$D$17:$F$17,"="&Inputs!B52,'By-Field'!$D$49:$F$49) + SUMIF('By-Field'!$D$18:$F$18,"="&Inputs!B52,'By-Field'!$D$49:$F$49) -> 0 | L52: 0
A53: 10 | E53: 0 | K53: =SUMIF('By-Field'!$D$16:$E$16,"="&Inputs!B53,'By-Field'!$D$49:$F$49) + SUMIF('By-Field'!$D$17:$F$17,"="&Inputs!B53,'By-Field'!$D$49:$F$49) + SUMIF('By-Field'!$D$18:$F$18,"="&Inputs!B53,'By-Field'!$D$49:$F$49) -> 0 | L53: 0
A54: 11 | E54: 0 | K54: =SUMIF('By-Field'!$D$16:$E$16,"="&Inputs!B54,'By-Field'!$D$49:$F$49) + SUMIF('By-Field'!$D$17:$F$17,"="&Inputs!B54,'By-Field'!$D$49:$F$49) + SUMIF('By-Field'!$D$18:$F$18,"="&Inputs!B54,'By-Field'!$D$49:$F$49) -> 0 | L54: 0
A55: 12 | E55: 0 | K55: =SUMIF('By-Field'!$D$16:$E$16,"="&Inputs!B55,'By-Field'!$D$49:$F$49) + SUMIF('By-Field'!$D$17:$F$17,"="&Inputs!B55,'By-Field'!$D$49:$F$49) + SUMIF('By-Field'!$D$18:$F$18,"="&Inputs!B55,'By-Field'!$D$49:$F$49) -> 0 | L55: 0
A56: 13 | E56: 0 | K56: =SUMIF('By-Field'!$D$16:$E$16,"="&Inputs!B56,'By-Field'!$D$49:$F$49) + SUMIF('By-Field'!$D$17:$F$17,"="&Inputs!B56,'By-Field'!$D$49:$F$49) + SUMIF('By-Field'!$D$18:$F$18,"="&Inputs!B56,'By-Field'!$D$49:$F$49) -> 0 | L56: 0
A57: 14 | E57: 0 | K57: =SUMIF('By-Field'!$D$16:$E$16,"="&Inputs!B57,'By-Field'!$D$49:$F$49) + SUMIF('By-Field'!$D$17:$F$17,"="&Inputs!B57,'By-Field'!$D$49:$F$49) + SUMIF('By-Field'!$D$18:$F$18,"="&Inputs!B57,'By-Field'!$D$49:$F$49) -> 0 | L57: 0
A58: 15 | E58: 0 | K58: =SUMIF('By-Field'!$D$16:$E$16,"="&Inputs!B58,'By-Field'!$D$49:$F$49) + SUMIF('By-Field'!$D$17:$F$17,"="&Inputs!B58,'By-Field'!$D$49:$F$49) + SUMIF('By-Field'!$D$18:$F$18,"="&Inputs!B58,'By-Field'!$D$49:$F$49) -> 0 | L58: 0
A59: 16 | E59: 0 | K59: =SUMIF('By-Field'!$D$16:$E$16,"="&Inputs!B59,'By-Field'!$D$49:$F$49) + SUMIF('By-Field'!$D$17:$F$17,"="&Inputs!B59,'By-Field'!$D$49:$F$49) + SUMIF('By-Field'!$D$18:$F$18,"="&Inputs!B59,'By-Field'!$D$49:$F$49) -> 0 | L59: 0
A60: 17 | E60: 0 | K60: =SUMIF('By-Field'!$D$16:$E$16,"="&Inputs!B60,'By-Field'!$D$49:$F$49) + SUMIF('By-Field'!$D$17:$F$17,"="&Inputs!B60,'By-Field'!$D$49:$F$49) + SUMIF('By-Field'!$D$18:$F$18,"="&Inputs!B60,'By-Field'!$D$49:$F$49) -> 0 | L60: 0
A61: 18 | E61: 0 | K61: =SUMIF('By-Field'!$D$16:$E$16,"="&Inputs!B61,'By-Field'!$D$49:$F$49) + SUMIF('By-Field'!$D$17:$F$17,"="&Inputs!B61,'By-Field'!$D$49:$F$49) + SUMIF('By-Field'!$D$18:$F$18,"="&Inputs!B61,'By-Field'!$D$49:$F$49) -> 0 | L61: 0
A62: 19 | E62: 0 | K62: =SUMIF('By-Field'!$D$16:$E$16,"="&Inputs!B62,'By-Field'!$D$49:$F$49) + SUMIF('By-Field'!$D$17:$F$17,"="&Inputs!B62,'By-Field'!$D$49:$F$49) + SUMIF('By-Field'!$D$18:$F$18,"="&Inputs!B62,'By-Field'!$D$49:$F$49) -> 0 | L62: 0
A63: 20 | E63: 0 | K63: =SUMIF('By-Field'!$D$16:$E$16,"="&Inputs!B63,'By-Field'!$D$49:$F$49) + SUMIF('By-Field'!$D$17:$F$17,"="&Inputs!B63,'By-Field'!$D$49:$F$49) + SUMIF('By-Field'!$D$18:$F$18,"="&Inputs!B63,'By-Field'!$D$49:$F$49) -> 0 | L63: 0
A64: 21 | E64: 0 | K64: =SUMIF('By-Field'!$D$16:$E$16,"="&Inputs!B64,'By-Field'!$D$49:$F$49) + SUMIF('By-Field'!$D$17:$F$17,"="&Inputs!B64,'By-Field'!$D$49:$F$49) + SUMIF('By-Field'!$D$18:$F$18,"="&Inputs!B64,'By-Field'!$D$49:$F$49) -> 0 | L64: 0
A65: 22 | E65: 0 | K65: =SUMIF('By-Field'!$D$16:$E$16,"="&Inputs!B65,'By-Field'!$D$49:$F$49) + SUMIF('By-Field'!$D$17:$F$17,"="&Inputs!B65,'By-Field'!$D$49:$F$49) + SUMIF('By-Field'!$D$18:$F$18,"="&Inputs!B65,'By-Field'!$D$49:$F$49) -> 0 | L65: 0
A66: 23 | E66: 0 | K66: =SUMIF('By-Field'!$D$16:$E$16,"="&Inputs!B66,'By-Field'!$D$49:$F$49) + SUMIF('By-Field'!$D$17:$F$17,"="&Inputs!B66,'By-Field'!$D$49:$F$49) + SUMIF('By-Field'!$D$18:$F$18,"="&Inputs!B66,'By-Field'!$D$49:$F$49) -> 0 | L66: 0
A67: 24 | E67: 0 | K67: =SUMIF('By-Field'!$D$16:$E$16,"="&Inputs!B67,'By-Field'!$D$49:$F$49) + SUMIF('By-Field'!$D$17:$F$17,"="&Inputs!B67,'By-Field'!$D$49:$F$49) + SUMIF('By-Field'!$D$18:$F$18,"="&Inputs!B67,'By-Field'!$D$49:$F$49) -> 0 | L67: 0
A68: 25 | E68: 0 | K68: =SUMIF('By-Field'!$D$16:$E$16,"="&Inputs!B68,'By-Field'!$D$49:$F$49) + SUMIF('By-Field'!$D$17:$F$17,"="&Inputs!B68,'By-Field'!$D$49:$F$49) + SUMIF('By-Field'!$D$18:$F$18,"="&Inputs!B68,'By-Field'!$D$49:$F$49) -> 0 | L68: 0
A69: 26 | E69: 0 | K69: =SUMIF('By-Field'!$D$16:$E$16,"="&Inputs!B69,'By-Field'!$D$49:$F$49) + SUMIF('By-Field'!$D$17:$F$17,"="&Inputs!B69,'By-Field'!$D$49:$F$49) + SUMIF('By-Field'!$D$18:$F$18,"="&Inputs!B69,'By-Field'!$D$49:$F$49) -> 0 | L69: 0
A70: 27 | E70: 0 | K70: =SUMIF('By-Field'!$D$16:$E$16,"="&Inputs!B70,'By-Field'!$D$49:$F$49) + SUMIF('By-Field'!$D$17:$F$17,"="&Inputs!B70,'By-Field'!$D$49:$F$49) + SUMIF('By-Field'!$D$18:$F$18,"="&Inputs!B70,'By-Field'!$D$49:$F$49) -> 0 | L70: 0
A71: 28 | E71: 0 | K71: =SUMIF('By-Field'!$D$16:$E$16,"="&Inputs!B71,'By-Field'!$D$49:$F$49) + SUMIF('By-Field'!$D$17:$F$17,"="&Inputs!B71,'By-Field'!$D$49:$F$49) + SUMIF('By-Field'!$D$18:$F$18,"="&Inputs!B71,'By-Field'!$D$49:$F$49) -> 0 | L71: 0
A72: 29 | E72: 0 | K72: =SUMIF('By-Field'!$D$16:$E$16,"="&Inputs!B72,'By-Field'!$D$49:$F$49) + SUMIF('By-Field'!$D$17:$F$17,"="&Inputs!B72,'By-Field'!$D$49:$F$49) + SUMIF('By-Field'!$D$18:$F$18,"="&Inputs!B72,'By-Field'!$D$49:$F$49) -> 0 | L72: 0
A73: 30 | E73: 0 | K73: =SUMIF('By-Field'!$D$16:$E$16,"="&Inputs!B73,'By-Field'!$D$49:$F$49) + SUMIF('By-Field'!$D$17:$F$17,"="&Inputs!B73,'By-Field'!$D$49:$F$49) + SUMIF('By-Field'!$D$18:$F$18,"="&Inputs!B73,'By-Field'!$D$49:$F$49) -> 0 | L73: 0
A81: HERBICIDE LIST | K81: Tallying the needs
A82: Index | B82: Label | C82: Price | D82: Rate | E82: Cost | K82: Area | L82: Amount
C83: ($/gal) | D83: (pt/ac) | E83: ($/ac) | K83: (ac) | L83: (gal)
A84: 1 | B84: nul - nothing | C84: 0 | D84: 0 | E84: 0 | K84: =SUMIF('By-Field'!$D$20:$F$20,"="&Inputs!B84,'By-Field'!$D$49:$F$49) + SUMIF('By-Field'!$D$21:$F$21,"="&Inputs!B84,'By-Field'!$D$49:$F$49) + SUMIF('By-Field'!$D$22:$F$22,"="&Inputs!B84,'By-Field'!$D$49:$F$49) -> 578 | L84: =K84*D84/8 -> 0
A85: 2 | B85: Herb1_1 | C85: 80 | D85: 2 | E85: =C85/8*D85 -> 20 | K85: =SUMIF('By-Field'!$D$20:$F$20,"="&Inputs!B85,'By-Field'!$D$49:$F$49) + SUMIF('By-Field'!$D$21:$F$21,"="&Inputs!B85,'By-Field'!$D$49:$F$49) + SUMIF('By-Field'!$D$22:$F$22,"="&Inputs!B85,'By-Field'!$D$49:$F$49) -> 289 | L85: 72.25
A86: 3 | B86: Herb1_1.5 | C86: 80 | D86: 1.5 | E86: =C86/8*D86 -> 15 | K86: =SUMIF('By-Field'!$D$20:$F$20,"="&Inputs!B86,'By-Field'!$D$49:$F$49) + SUMIF('By-Field'!$D$21:$F$21,"="&Inputs!B86,'By-Field'!$D$49:$F$49) + SUMIF('By-Field'!$D$22:$F$22,"="&Inputs!B86,'By-Field'!$D$49:$F$49) -> 0 | L86: 0
A87: 4 | B87: Herb 3 | C87: 60 | D87: 2 | E87: =C87/8*D87 -> 15 | K87: =SUMIF('By-Field'!$D$20:$F$20,"="&Inputs!B87,'By-Field'!$D$49:$F$49) + SUMIF('By-Field'!$D$21:$F$21,"="&Inputs!B87,'By-Field'!$D$49:$F$49) + SUMIF('By-Field'!$D$22:$F$22,"="&Inputs!B87,'By-Field'!$D$49:$F$49) -> 0 | L87: 0
A88: 5 | E88: 0 | K88: =SUMIF('By-Field'!$D$20:$F$20,"="&Inputs!B88,'By-Field'!$D$49:$F$49) + SUMIF('By-Field'!$D$21:$F$21,"="&Inputs!B88,'By-Field'!$D$49:$F$49) + SUMIF('By-Field'!$D$22:$F$22,"="&Inputs!B88,'By-Field'!$D$49:$F$49) -> 0 | L88: 0
A89: 6 | E89: 0 | K89: =SUMIF('By-Field'!$D$20:$F$20,"="&Inputs!B89,'By-Field'!$D$49:$F$49) + SUMIF('By-Field'!$D$21:$F$21,"="&Inputs!B89,'By-Field'!$D$49:$F$49) + SUMIF('By-Field'!$D$22:$F$22,"="&Inputs!B89,'By-Field'!$D$49:$F$49) -> 0 | L89: 0
A90: 7 | E90: 0 | K90: =SUMIF('By-Field'!$D$20:$F$20,"="&Inputs!B90,'By-Field'!$D$49:$F$49) + SUMIF('By-Field'!$D$21:$F$21,"="&Inputs!B90,'By-Field'!$D$49:$F$49) + SUMIF('By-Field'!$D$22:$F$22,"="&Inputs!B90,'By-Field'!$D$49:$F$49) -> 0 | L90: 0
A91: 8 | E91: 0 | K91: =SUMIF('By-Field'!$D$20:$F$20,"="&Inputs!B91,'By-Field'!$D$49:$F$49) + SUMIF('By-Field'!$D$21:$F$21,"="&Inputs!B91,'By-Field'!$D$49:$F$49) + SUMIF('By-Field'!$D$22:$F$22,"="&Inputs!B91,'By-Field'!$D$49:$F$49) -> 0 | L91: 0
A92: 9 | E92: 0 | K92: =SUMIF('By-Field'!$D$20:$F$20,"="&Inputs!B92,'By-Field'!$D$49:$F$49) + SUMIF('By-Field'!$D$21:$F$21,"="&Inputs!B92,'By-Field'!$D$49:$F$49) + SUMIF('By-Field'!$D$22:$F$22,"="&Inputs!B92,'By-Field'!$D$49:$F$49) -> 0 | L92: 0
A93: 10 | E93: 0 | K93: =SUMIF('By-Field'!$D$20:$F$20,"="&Inputs!B93,'By-Field'!$D$49:$F$49) + SUMIF('By-Field'!$D$21:$F$21,"="&Inputs!B93,'By-Field'!$D$49:$F$49) + SUMIF('By-Field'!$D$22:$F$22,"="&Inputs!B93,'By-Field'!$D$49:$F$49) -> 0 | L93: 0
A94: 11 | E94: 0 | K94: =SUMIF('By-Field'!$D$20:$F$20,"="&Inputs!B94,'By-Field'!$D$49:$F$49) + SUMIF('By-Field'!$D$21:$F$21,"="&Inputs!B94,'By-Field'!$D$49:$F$49) + SUMIF('By-Field'!$D$22:$F$22,"="&Inputs!B94,'By-Field'!$D$49:$F$49) -> 0 | L94: 0
A95: 12 | E95: 0 | K95: =SUMIF('By-Field'!$D$20:$F$20,"="&Inputs!B95,'By-Field'!$D$49:$F$49) + SUMIF('By-Field'!$D$21:$F$21,"="&Inputs!B95,'By-Field'!$D$49:$F$49) + SUMIF('By-Field'!$D$22:$F$22,"="&Inputs!B95,'By-Field'!$D$49:$F$49) -> 0 | L95: 0
A96: 13 | E96: 0 | K96: =SUMIF('By-Field'!$D$20:$F$20,"="&Inputs!B96,'By-Field'!$D$49:$F$49) + SUMIF('By-Field'!$D$21:$F$21,"="&Inputs!B96,'By-Field'!$D$49:$F$49) + SUMIF('By-Field'!$D$22:$F$22,"="&Inputs!B96,'By-Field'!$D$49:$F$49) -> 0 | L96: 0
A97: 14 | E97: 0 | K97: =SUMIF('By-Field'!$D$20:$F$20,"="&Inputs!B97,'By-Field'!$D$49:$F$49) + SUMIF('By-Field'!$D$21:$F$21,"="&Inputs!B97,'By-Field'!$D$49:$F$49) + SUMIF('By-Field'!$D$22:$F$22,"="&Inputs!B97,'By-Field'!$D$49:$F$49) -> 0 | L97: 0
A98: 15 | E98: 0 | K98: =SUMIF('By-Field'!$D$20:$F$20,"="&Inputs!B98,'By-Field'!$D$49:$F$49) + SUMIF('By-Field'!$D$21:$F$21,"="&Inputs!B98,'By-Field'!$D$49:$F$49) + SUMIF('By-Field'!$D$22:$F$22,"="&Inputs!B98,'By-Field'!$D$49:$F$49) -> 0 | L98: 0
A99: 16 | E99: 0 | K99: =SUMIF('By-Field'!$D$20:$F$20,"="&Inputs!B99,'By-Field'!$D$49:$F$49) + SUMIF('By-Field'!$D$21:$F$21,"="&Inputs!B99,'By-Field'!$D$49:$F$49) + SUMIF('By-Field'!$D$22:$F$22,"="&Inputs!B99,'By-Field'!$D$49:$F$49) -> 0 | L99: 0
A100: 17 | E100: 0 | K100: =SUMIF('By-Field'!$D$20:$F$20,"="&Inputs!B100,'By-Field'!$D$49:$F$49) + SUMIF('By-Field'!$D$21:$F$21,"="&Inputs!B100,'By-Field'!$D$49:$F$49) + SUMIF('By-Field'!$D$22:$F$22,"="&Inputs!B100,'By-Field'!$D$49:$F$49) -> 0 | L100: 0
A101: 18 | E101: 0 | K101: =SUMIF('By-Field'!$D$20:$F$20,"="&Inputs!B101,'By-Field'!$D$49:$F$49) + SUMIF('By-Field'!$D$21:$F$21,"="&Inputs!B101,'By-Field'!$D$49:$F$49) + SUMIF('By-Field'!$D$22:$F$22,"="&Inputs!B101,'By-Field'!$D$49:$F$49) -> 0 | L101: 0
A102: 19 | E102: 0 | K102: =SUMIF('By-Field'!$D$20:$F$20,"="&Inputs!B102,'By-Field'!$D$49:$F$49) + SUMIF('By-Field'!$D$21:$F$21,"="&Inputs!B102,'By-Field'!$D$49:$F$49) + SUMIF('By-Field'!$D$22:$F$22,"="&Inputs!B102,'By-Field'!$D$49:$F$49) -> 0 | L102: 0
A103: 20 | E103: 0 | K103: =SUMIF('By-Field'!$D$20:$F$20,"="&Inputs!B103,'By-Field'!$D$49:$F$49) + SUMIF('By-Field'!$D$21:$F$21,"="&Inputs!B103,'By-Field'!$D$49:$F$49) + SUMIF('By-Field'!$D$22:$F$22,"="&Inputs!B103,'By-Field'!$D$49:$F$49) -> 0 | L103: 0
A104: 21 | E104: 0 | K104: =SUMIF('By-Field'!$D$20:$F$20,"="&Inputs!B104,'By-Field'!$D$49:$F$49) + SUMIF('By-Field'!$D$21:$F$21,"="&Inputs!B104,'By-Field'!$D$49:$F$49) + SUMIF('By-Field'!$D$22:$F$22,"="&Inputs!B104,'By-Field'!$D$49:$F$49) -> 0 | L104: 0
A105: 22 | E105: 0 | K105: =SUMIF('By-Field'!$D$20:$F$20,"="&Inputs!B105,'By-Field'!$D$49:$F$49) + SUMIF('By-Field'!$D$21:$F$21,"="&Inputs!B105,'By-Field'!$D$49:$F$49) + SUMIF('By-Field'!$D$22:$F$22,"="&Inputs!B105,'By-Field'!$D$49:$F$49) -> 0 | L105: 0
A106: 23 | E106: 0 | K106: =SUMIF('By-Field'!$D$20:$F$20,"="&Inputs!B106,'By-Field'!$D$49:$F$49) + SUMIF('By-Field'!$D$21:$F$21,"="&Inputs!B106,'By-Field'!$D$49:$F$49) + SUMIF('By-Field'!$D$22:$F$22,"="&Inputs!B106,'By-Field'!$D$49:$F$49) -> 0 | L106: 0
A107: 24 | E107: 0 | K107: =SUMIF('By-Field'!$D$20:$F$20,"="&Inputs!B107,'By-Field'!$D$49:$F$49) + SUMIF('By-Field'!$D$21:$F$21,"="&Inputs!B107,'By-Field'!$D$49:$F$49) + SUMIF('By-Field'!$D$22:$F$22,"="&Inputs!B107,'By-Field'!$D$49:$F$49) -> 0 | L107: 0
A108: 25 | E108: 0 | K108: =SUMIF('By-Field'!$D$20:$F$20,"="&Inputs!B108,'By-Field'!$D$49:$F$49) + SUMIF('By-Field'!$D$21:$F$21,"="&Inputs!B108,'By-Field'!$D$49:$F$49) + SUMIF('By-Field'!$D$22:$F$22,"="&Inputs!B108,'By-Field'!$D$49:$F$49) -> 0 | L108: 0
A109: 26 | E109: 0 | K109: =SUMIF('By-Field'!$D$20:$F$20,"="&Inputs!B109,'By-Field'!$D$49:$F$49) + SUMIF('By-Field'!$D$21:$F$21,"="&Inputs!B109,'By-Field'!$D$49:$F$49) + SUMIF('By-Field'!$D$22:$F$22,"="&Inputs!B109,'By-Field'!$D$49:$F$49) -> 0 | L109: 0
A110: 27 | E110: 0 | K110: =SUMIF('By-Field'!$D$20:$F$20,"="&Inputs!B110,'By-Field'!$D$49:$F$49) + SUMIF('By-Field'!$D$21:$F$21,"="&Inputs!B110,'By-Field'!$D$49:$F$49) + SUMIF('By-Field'!$D$22:$F$22,"="&Inputs!B110,'By-Field'!$D$49:$F$49) -> 0 | L110: 0
A111: 28 | E111: 0 | K111: =SUMIF('By-Field'!$D$20:$F$20,"="&Inputs!B111,'By-Field'!$D$49:$F$49) + SUMIF('By-Field'!$D$21:$F$21,"="&Inputs!B111,'By-Field'!$D$49:$F$49) + SUMIF('By-Field'!$D$22:$F$22,"="&Inputs!B111,'By-Field'!$D$49:$F$49) -> 0 | L111: 0
A112: 29 | E112: 0 | K112: =SUMIF('By-Field'!$D$20:$F$20,"="&Inputs!B112,'By-Field'!$D$49:$F$49) + SUMIF('By-Field'!$D$21:$F$21,"="&Inputs!B112,'By-Field'!$D$49:$F$49) + SUMIF('By-Field'!$D$22:$F$22,"="&Inputs!B112,'By-Field'!$D$49:$F$49) -> 0 | L112: 0
A113: 30 | E113: 0 | K113: =SUMIF('By-Field'!$D$20:$F$20,"="&Inputs!B113,'By-Field'!$D$49:$F$49) + SUMIF('By-Field'!$D$21:$F$21,"="&Inputs!B113,'By-Field'!$D$49:$F$49) + SUMIF('By-Field'!$D$22:$F$22,"="&Inputs!B113,'By-Field'!$D$49:$F$49) -> 0 | L113: 0
A121: INSECTICIDE LIST | K121: Tallying the needs
A122: Index | B122: Label | C122: Price | D122: Rate | E122: Cost | K122: Area | L122: Amount
C123: ($/gal) | D123: (pt/ac) | E123: ($/ac) | K123: (ac) | L123: (gal)
A124: 1 | B124: nul - nothing | C124: 0 | D124: 0 | E124: 0 | K124: =SUMIF('By-Field'!$D$23:$F$23,"="&Inputs!B124,'By-Field'!$D$49:$F$49) + SUMIF('By-Field'!$D$24:$F$24,"="&Inputs!B124,'By-Field'!$D$49:$F$49) -> 5 | L124: =K124*D124/8 -> 0
A125: 2 | B125: Inse1_.5 | C125: 80 | D125: 0.5 | E125: =C125/8*D125 -> 5 | K125: =SUMIF('By-Field'!$D$23:$F$23,"="&Inputs!B125,'By-Field'!$D$49:$F$49) + SUMIF('By-Field'!$D$24:$F$24,"="&Inputs!B125,'By-Field'!$D$49:$F$49) -> 289 | L125: 18.0625
A126: 3 | B126: Inse1_1 | C126: 80 | D126: 1 | E126: =C126/8*D126 -> 10 | K126: =SUMIF('By-Field'!$D$23:$F$23,"="&Inputs!B126,'By-Field'!$D$49:$F$49) + SUMIF('By-Field'!$D$24:$F$24,"="&Inputs!B126,'By-Field'!$D$49:$F$49) -> 284 | L126: 35.5
A127: 4 | E127: =C127/8*D127 -> 0 | K127: =SUMIF('By-Field'!$D$23:$F$23,"="&Inputs!B127,'By-Field'!$D$49:$F$49) + SUMIF('By-Field'!$D$24:$F$24,"="&Inputs!B127,'By-Field'!$D$49:$F$49) -> 0 | L127: 0
A128: 5 | E128: 0 | K128: =SUMIF('By-Field'!$D$23:$F$23,"="&Inputs!B128,'By-Field'!$D$49:$F$49) + SUMIF('By-Field'!$D$24:$F$24,"="&Inputs!B128,'By-Field'!$D$49:$F$49) -> 0 | L128: 0
A129: 6 | E129: 0 | K129: =SUMIF('By-Field'!$D$23:$F$23,"="&Inputs!B129,'By-Field'!$D$49:$F$49) + SUMIF('By-Field'!$D$24:$F$24,"="&Inputs!B129,'By-Field'!$D$49:$F$49) -> 0 | L129: 0
A130: 7 | E130: 0 | K130: =SUMIF('By-Field'!$D$23:$F$23,"="&Inputs!B130,'By-Field'!$D$49:$F$49) + SUMIF('By-Field'!$D$24:$F$24,"="&Inputs!B130,'By-Field'!$D$49:$F$49) -> 0 | L130: 0
A131: 8 | E131: 0 | K131: =SUMIF('By-Field'!$D$23:$F$23,"="&Inputs!B131,'By-Field'!$D$49:$F$49) + SUMIF('By-Field'!$D$24:$F$24,"="&Inputs!B131,'By-Field'!$D$49:$F$49) -> 0 | L131: 0
A132: 9 | E132: 0 | K132: =SUMIF('By-Field'!$D$23:$F$23,"="&Inputs!B132,'By-Field'!$D$49:$F$49) + SUMIF('By-Field'!$D$24:$F$24,"="&Inputs!B132,'By-Field'!$D$49:$F$49) -> 0 | L132: 0
A133: 10 | E133: 0 | K133: =SUMIF('By-Field'!$D$23:$F$23,"="&Inputs!B133,'By-Field'!$D$49:$F$49) + SUMIF('By-Field'!$D$24:$F$24,"="&Inputs!B133,'By-Field'!$D$49:$F$49) -> 0 | L133: 0
A141: FUNGICIDE LIST | K141: Tallying the needs
A142: Index | B142: Label | C142: Price | D142: Rate | E142: Cost | K142: Area | L142: Amount
C143: ($/lb) | D143: (oz/ac) | E143: ($/ac) | K143: (ac) | L143: (lb)
A144: 1 | B144: nul - nothing | C144: 0 | D144: 0 | E144: 0 | K144: =SUMIF('By-Field'!$D$25:$F$25,"="&Inputs!B144,'By-Field'!$D$49:$F$49) + SUMIF('By-Field'!$D$26:$F$26,"="&Inputs!B144,'By-Field'!$D$49:$F$49) -> 0 | L144: =K144*D144/16 -> 0
A145: 2 | B145: Fung_1 | C145: 80 | D145: 2 | E145: =C145/16*D145 -> 10 | K145: =SUMIF('By-Field'!$D$25:$F$25,"="&Inputs!B145,'By-Field'!$D$49:$F$49) + SUMIF('By-Field'!$D$26:$F$26,"="&Inputs!B145,'By-Field'!$D$49:$F$49) -> 289 | L145: 36.125
A146: 3 | B146: Fung_2 | C146: 70 | D146: 1 | E146: 4.375 | K146: =SUMIF('By-Field'!$D$25:$F$25,"="&Inputs!B146,'By-Field'!$D$49:$F$49) + SUMIF('By-Field'!$D$26:$F$26,"="&Inputs!B146,'By-Field'!$D$49:$F$49) -> 289 | L146: 18.0625
A147: 4 | E147: 0 | K147: =SUMIF('By-Field'!$D$25:$F$25,"="&Inputs!B147,'By-Field'!$D$49:$F$49) + SUMIF('By-Field'!$D$26:$F$26,"="&Inputs!B147,'By-Field'!$D$49:$F$49) -> 0 | L147: 0
A148: 5 | E148: 0 | K148: =SUMIF('By-Field'!$D$25:$F$25,"="&Inputs!B148,'By-Field'!$D$49:$F$49) + SUMIF('By-Field'!$D$26:$F$26,"="&Inputs!B148,'By-Field'!$D$49:$F$49) -> 0 | L148: 0
A149: 6 | E149: 0 | K149: =SUMIF('By-Field'!$D$25:$F$25,"="&Inputs!B149,'By-Field'!$D$49:$F$49) + SUMIF('By-Field'!$D$26:$F$26,"="&Inputs!B149,'By-Field'!$D$49:$F$49) -> 0 | L149: 0
A150: 7 | E150: 0 | K150: =SUMIF('By-Field'!$D$25:$F$25,"="&Inputs!B150,'By-Field'!$D$49:$F$49) + SUMIF('By-Field'!$D$26:$F$26,"="&Inputs!B150,'By-Field'!$D$49:$F$49) -> 0 | L150: 0
A151: 8 | E151: 0 | K151: =SUMIF('By-Field'!$D$25:$F$25,"="&Inputs!B151,'By-Field'!$D$49:$F$49) + SUMIF('By-Field'!$D$26:$F$26,"="&Inputs!B151,'By-Field'!$D$49:$F$49) -> 0 | L151: 0
A152: 9 | E152: 0 | K152: =SUMIF('By-Field'!$D$25:$F$25,"="&Inputs!B152,'By-Field'!$D$49:$F$49) + SUMIF('By-Field'!$D$26:$F$26,"="&Inputs!B152,'By-Field'!$D$49:$F$49) -> 0 | L152: 0
A153: 10 | E153: 0 | K153: =SUMIF('By-Field'!$D$25:$F$25,"="&Inputs!B153,'By-Field'!$D$49:$F$49) + SUMIF('By-Field'!$D$26:$F$26,"="&Inputs!B153,'By-Field'!$D$49:$F$49) -> 0 | L153: 0

Sheet By-Field
A1: INPUTS | C1: FALSE
A2: FIELD
A3: N | B3: name | C3: -- | D3: Big1_244 | E3: north40_40 | F3: back20b_5
A5: INCOME
A6: Y | B6: yield goal | C6: bu/ac | D6: 180 | E6: 177 | F6: 180
A7: SP | B7: selling price | C7: $/bu | D7: 3.33 | E7: 3.33 | F7: 3.33
A8: CCB | B8: cover crops income | C8: $/ac | D8: 0 | E8: 0 | F8: 0
A9: OI_1 | B9: other income 1 | C9: $/ac | D9: 2 | E9: 2 | F9: 2
A10: OI_2 | B10: other income 2 | C10: $/ac | D10: 0 | E10: 0 | F10: 0
A12: COSTS
A13: Crop Inputs
A14: LC | B14: land cost | C14: $/ac | D14: 180 | E14: 150 | F14: 150
A15: WS | B15: which seed | C15: -- | D15: Xpensive2-28_N | E15: Becks1_30_I | F15: Xpensive2-28
A16: WF_1 | B16: which fertilizer1 | C16: -- | D16: 82-0-0-0_150 | E16: 82-0-0-0_150 | F16: 82-0-0-0_150
A17: WF_2 | B17: which fertilizer 2 | C17: -- | D17: 18-46-0-0_60 | E17: 18-46-0-0_60 | F17: 0-0-60-0_50
A18: WF_3 | B18: which fertilizer 3 | C18: -- | D18: 28-0-0-0_70 | E18: 28-0-0-0_70 | F18: 18-46-0-0_60
A19: WF_4 | B19: which fertilizer 4 | C19: -- | D19: 0-0-0-17_20 | E19: nul - nothing | F19: nul - nothing
A20: WHC_1 | B20: which herbicide 1 | C20: -- | D20: nul - nothing | E20: nul - nothing | F20: nul - nothing
A21: WHC_2 | B21: which herbicide 2 | C21: -- | D21: Herb1_1 | E21: Herb1_1 | F21: Herb1_1
A22: WHC_3 | B22: which herbicide 3 | C22: -- | D22: nul - nothing | E22: nul - nothing | F22: nul - nothing
A23: WIC_1 | B23: which insecticide 1 | C23: -- | D23: Inse1_.5 | E23: Inse1_.5 | F23: Inse1_.5
A24: WIC_2 | B24: which insecticide 2 | C24: -- | D24: Inse1_1 | E24: Inse1_1 | F24: nul - nothing
A25: WFC_1 | B25: which fungicide 1 | C25: -- | D25: Fung_1 | E25: Fung_1 | F25: Fung_1
A26: WFC_2 | B26: which fungicide 2 | C26: -- | D26: Fung_2 | E26: Fung_2 | F26: Fung_2
A27: CI | B27: crop insurance | C27: $/ac | D27: 4.44 | E27: 4.44 | F27: 4.44
A28: S | B28: scouting | C28: $/ac | D28: 6 | E28: 6 | F28: 6
A29: OMI | B29: other misc. inputs | C29: $/ac | D29: 0.02 | E29: 0.02 | F29: 0.02
A30: Cover Crops
A31: CCS | B31: cover crops seed | C31: $/ac
A32: CCP | B32: cover crops planting | C32: $/ac
A33: CCT | B33: cover crops termination | C33: $/ac
A34: Water Management
A35: DRI | B35: drainage repair or improvement | C35: $/ac
A36: IR | B36: irrigation cost | C36: $/ac
A37: Machinery
A38: T | B38: tillage | C38: $/ac | D38: 25 | E38: 0 | F38: 25
A39: P | B39: planting | C39: $/ac | D39: 22 | E39: 22 | F39: 22
A40: SS | B40: spraying/spreading | C40: $/ac | D40: 20 | E40: 20 | F40: 20
A41: H | B41: harvest | C41: $/ac | D41: 29 | E41: 29 | F41: 29
A42: OM | B42: other machinery operations | C42: $/ac | D42: 8 | E42: 8 | F42: 8
A43: Post harvest
A44: DC | B44: drying cost | C44: $/bu | D44: 0.05 | E44: 0.04 | F44: 0.02
A45: SC | B45: storage cost | C45: $/bu | D45: 0.2 | E45: 0.11 | F45: 0.1
A46: TC | B46: transport cost | C46: $/bu | D46: 0.12 | E46: 0.2 | F46: 0.2
A48: COMPUTED:
A49: A | B49: area | C49: ac | D49: =VLOOKUP(N,fields,2,FALSE) -> 244 | E49: =VLOOKUP(N,fields,2,FALSE) -> 40 | F49: =VLOOKUP(N,fields,2,FALSE) -> 5
A50: Components of cost
A51: SEC | B51: seed cost | C51: $/ac | D51: =VLOOKUP(WS,seeds,4,FALSE) -> 119 | E51: =VLOOKUP(WS,seeds,4,FALSE) -> 90 | F51: =VLOOKUP(WS,seeds,4,FALSE) -> 112 | G51: =VLOOKUP(WS,seeds,4,FALSE)
A52: FTC | B52: fertilizer cost | C52: $/ac | D52: =VLOOKUP(WF_1,ferts,4,FALSE)+VLOOKUP(WF_2,ferts,4,FALSE)+VLOOKUP(WF_3,ferts,4,FALSE)+VLOOKUP(WF_4,ferts,4,FALSE) -> 91.18 | E52: =VLOOKUP(WF_1,ferts,4,FALSE)+VLOOKUP(WF_2,ferts,4,FALSE)+VLOOKUP(WF_3,ferts,4,FALSE)+VLOOKUP(WF_4,ferts,4,FALSE) -> 90.6 | F52: =VLOOKUP(WF_1,ferts,4,FALSE)+VLOOKUP(WF_2,ferts,4,FALSE)+VLOOKUP(WF_3,ferts,4,FALSE)+VLOOKUP(WF_4,ferts,4,FALSE) -> 93.05 | G52: =VLOOKUP(WF_1,ferts,4,FALSE)+VLOOKUP(WF_2,ferts,4,FALSE)+VLOOKUP(WF_3,ferts,4,FALSE)+VLOOKUP(WF_4,ferts,4,FALSE)
A53: HC | B53: herbicide cost | C53: $/ac | D53: =VLOOKUP(WHC_1,hcides,4,FALSE)+VLOOKUP(WHC_2,hcides,4,FALSE)+VLOOKUP(WHC_3,hcides,4,FALSE) -> 20 | E53: =VLOOKUP(WHC_1,hcides,4,FALSE)+VLOOKUP(WHC_2,hcides,4,FALSE)+VLOOKUP(WHC_3,hcides,4,FALSE) -> 20 | F53: =VLOOKUP(WHC_1,hcides,4,FALSE)+VLOOKUP(WHC_2,hcides,4,FALSE)+VLOOKUP(WHC_3,hcides,4,FALSE) -> 20 | G53: =VLOOKUP(WHC_1,hcides,4,FALSE)+VLOOKUP(WHC_2,hcides,4,FALSE)+VLOOKUP(WHC_3,hcides,4,FALSE)
A54: IC | B54: insecticide cost | C54: $/ac | D54: =VLOOKUP(WIC_1,icides,4,FALSE) + VLOOKUP(WIC_2,icides,4,FALSE) -> 15 | E54: =VLOOKUP(WIC_1,icides,4,FALSE) + VLOOKUP(WIC_2,icides,4,FALSE) -> 15 | F54: =VLOOKUP(WIC_1,icides,4,FALSE) + VLOOKUP(WIC_2,icides,4,FALSE) -> 5 | G54: =VLOOKUP(WIC_1,icides,4,FALSE) + VLOOKUP(WIC_2,icides,4,FALSE)
A55: FNC | B55: fungicide cost | C55: $/ac | D55: =VLOOKUP(WFC_1,fcides,4,FALSE) + VLOOKUP(WFC_2,fcides,4,FALSE) -> 14.375 | E55: =VLOOKUP(WFC_1,fcides,4,FALSE) + VLOOKUP(WFC_2,fcides,4,FALSE) -> 14.375 | F55: =VLOOKUP(WFC_1,fcides,4,FALSE) + VLOOKUP(WFC_2,fcides,4,FALSE) -> 14.375 | G55: =VLOOKUP(WFC_1,fcides,4,FALSE) + VLOOKUP(WFC_2,fcides,4,FALSE)
A56: CCC | B56: cover crops cost | C56: $/ac | D56: =CCS+CCP+CCT -> 0 | E56: =CCS+CCP+CCT -> 0 | F56: =CCS+CCP+CCT -> 0 | G56: =CCS+CCP+CCT
A57: WMC | B57: water mgmt cost | C57: $/ac | D57: =DRI+IR -> 0 | E57: =DRI+IR -> 0 | F57: =DRI+IR -> 0 | G57: =DRI+IR
A58: MC | B58: machinery costs | C58: $/ac | D58: =T+P+SS+H+OM -> 104 | E58: =T+P+SS+H+OM -> 79 | F58: =T+P+SS+H+OM -> 104 | G58: =T+P+SS+H+OM
A59: PHC | B59: post harvest cost per bu | C59: $/bu | D59: =DC+SC+TC -> 0.37 | E59: =DC+SC+TC -> 0.35 | F59: =DC+SC+TC -> 0.32 | G59: =DC+SC+TC
A60: PHC_du | B60: post harvest cost | C60: $/ac | D60: =PHC*Y -> 66.6 | E60: =PHC*Y -> 61.95 | F60: =PHC*Y -> 57.6 | G60: =PHC*Y
A61: Summed
A62: TI | B62: total income | C62: $/ac | D62: =SP*Y+OI_1+OI_2 -> 601.4 | E62: =SP*Y+OI_1+OI_2 -> 591.41 | F62: =SP*Y+OI_1+OI_2 -> 601.4 | G62: =SP*Y+OI_1+OI_2
A63: STOC | B63: subtotal of cost | C63: $/ac | D63: =(LC+CI+S+OMI+SEC+FTC+HC+IC+FNC+CCC+WMC+MC)+PHC*Y -> 620.615 | E63: =(LC+CI+S+OMI+SEC+FTC+HC+IC+FNC+CCC+WMC+MC)+PHC*Y -> 531.385 | F63: =(LC+CI+S+OMI+SEC+FTC+HC+IC+FNC+CCC+WMC+MC)+PHC*Y -> 566.485 | G63: =(LC+CI+S+OMI+SEC+FTC+HC+IC+FNC+CCC+WMC+MC)+PHC*Y
A65: Return over considered costs
A66: RPA | B66: return per acre | C66: $/ac | D66: =TI-STOC -> -19.215 | E66: =TI-STOC -> 60.025 | F66: =TI-STOC -> 34.915 | G66: =TI-STOC
A67: RFF | B67: return for field | C67: $ | D67: =RPA*A -> -4688.46 | E67: =RPA*A -> 2401 | F67: =RPA*A -> 174.575 | G67: =RPA*A
A69: Farm Summary (summed across all columns)
A70: Area | D70: =SUM(49:49) -> 289 | E70: ac
A71: Returns over considered costs | D71: =SUM(67:67) -> -2112.885 | E71: $
A72: Average return over considered costs | D72: =D71/D70 -> -7.311020761 | E72: $/ac
A75: Data table of sensitivity (what if?) analysis for varied price and yield
A76: Table is based on Column E scenario
A77: Table has Return over Considered Costs ($/ac)
D78: Yield (bu/ac)
B79: Crop Price ($/bu) | C79: -15% | D79: baseline | E79: +15%
B80: =E66 -> 60.025 | C80: =D80*0.85 -> 150.45 | D80: 177 | E80: =D80*1.15 -> 203.55
A81: -30% | B81: =B83*0.7 -> 2.331 | C81: -169.39355 | D81: -116.798 | E81: -64.20245
A82: -15% | B82: =B83*0.85 -> 2.8305 | C82: -94.243775 | D82: -28.3865 | E82: 37.470775
A83: baseline | B83: 3.33 | C83: -19.094 | D83: 60.025 | E83: 139.144
A84: +15% | B84: =B83*1.15 -> 3.8295 | C84: 56.055775 | D84: 148.4365 | E84: 240.817225
A85: +30% | B85: =B83*1.3 -> 4.329 | C85: 131.20555 | D85: 236.848 | E85: 342.49045
A88: Figure 1. Column D scenario
A109: Figure 2. Column E scenario

Sheet FertCosts
A1: INPUTS | D1: Combo 1 | E1: Combo 2 | F1: Combo 3 | G1: Combo 4 | H1: TRUE
A2: T_1 | B2: type 1 | C2: -- | D2: 82-0-0, anhydrous ammonia | E2: 82-0-0, anhydrous ammonia | F2: 82-0-0, anhydrous ammonia | G2: 82-0-0, anhydrous ammonia
A3: R_1 | B3: rate of type 1 | C3: lb/ac | D3: 150 | E3: 150 | F3: 150 | G3: 120
A4: T_2 | B4: type 2 | C4: -- | D4: 18-46-0, diammonium phosphate | E4: 18-46-0, diammonium phosphate | F4: 46-0-0, urea | G4: 0-0-60, muriate of potash
A5: R_2 | B5: rate of type 2 | C5: lb/ac | D5: 40 | E5: 50 | F5: 80 | G5: 40
A6: T_3 | B6: type 3 | C6: -- | D6: 28-0-0, 28% urea ammonium nitrate | E6: 46-0-0, urea | F6: 18-46-0, diammonium phosphate | G6: 18-46-0, diammonium phosphate
A7: R_3 | B7: rate of type 3 | C7: lb/ac | D7: 70 | E7: 50 | F7: 60 | G7: 40
A8: T_4 | B8: type 4 | C8: -- | D8: 0-0-0-17, pelleted gypsum | E8: 0-0-0-17, ground gypsum | F8: 0-0-0-22-21, K-Mag | G8: 0-0-0-17, pelleted gypsum
A9: R_4 | B9: rate of type 4 | C9: lb/ac | D9: 20 | E9: 20 | F9: 20 | G9: 20
A10: OUTPUTS
A11: N | B11: total N contribution | C11: lb N/ac | D11: =VLOOKUP(T_1,Flizers,2,FALSE)*R_1+VLOOKUP(T_2,Flizers,2,FALSE)*R_2+VLOOKUP(T_3,Flizers,2,FALSE)*R_3+VLOOKUP(T_4,Flizers,2,FALSE)*R_4 -> 149.8 | E11: =VLOOKUP(T_1,Flizers,2,FALSE)*R_1+VLOOKUP(T_2,Flizers,2,FALSE)*R_2+VLOOKUP(T_3,Flizers,2,FALSE)*R_3+VLOOKUP(T_4,Flizers,2,FALSE)*R_4 -> 155 | F11: =VLOOKUP(T_1,Flizers,2,FALSE)*R_1+VLOOKUP(T_2,Flizers,2,FALSE)*R_2+VLOOKUP(T_3,Flizers,2,FALSE)*R_3+VLOOKUP(T_4,Flizers,2,FALSE)*R_4 -> 170.6 | G11: =VLOOKUP(T_1,Flizers,2,FALSE)*R_1+VLOOKUP(T_2,Flizers,2,FALSE)*R_2+VLOOKUP(T_3,Flizers,2,FALSE)*R_3+VLOOKUP(T_4,Flizers,2,FALSE)*R_4 -> 105.6 | H11: =VLOOKUP(T_1,Flizers,2,FALSE)*R_1+VLOOKUP(T_2,Flizers,2,FALSE)*R_2+VLOOKUP(T_3,Flizers,2,FALSE)*R_3+VLOOKUP(T_4,Flizers,2,FALSE)*R_4
A12: P | B12: total P2O5 contribution | C12: lb P2O5/ac | D12: =VLOOKUP(T_1,Flizers,3,FALSE)*R_1+VLOOKUP(T_2,Flizers,3,FALSE)*R_2+VLOOKUP(T_3,Flizers,3,FALSE)*R_3+VLOOKUP(T_4,Flizers,3,FALSE)*R_4 -> 18.4 | E12: =VLOOKUP(T_1,Flizers,3,FALSE)*R_1+VLOOKUP(T_2,Flizers,3,FALSE)*R_2+VLOOKUP(T_3,Flizers,3,FALSE)*R_3+VLOOKUP(T_4,Flizers,3,FALSE)*R_4 -> 23 | F12: =VLOOKUP(T_1,Flizers,3,FALSE)*R_1+VLOOKUP(T_2,Flizers,3,FALSE)*R_2+VLOOKUP(T_3,Flizers,3,FALSE)*R_3+VLOOKUP(T_4,Flizers,3,FALSE)*R_4 -> 27.6 | G12: =VLOOKUP(T_1,Flizers,3,FALSE)*R_1+VLOOKUP(T_2,Flizers,3,FALSE)*R_2+VLOOKUP(T_3,Flizers,3,FALSE)*R_3+VLOOKUP(T_4,Flizers,3,FALSE)*R_4 -> 18.4 | H12: =VLOOKUP(T_1,Flizers,3,FALSE)*R_1+VLOOKUP(T_2,Flizers,3,FALSE)*R_2+VLOOKUP(T_3,Flizers,3,FALSE)*R_3+VLOOKUP(T_4,Flizers,3,FALSE)*R_4
A13: K | B13: total K2O contribution | C13: lb K2O/ac | D13: =VLOOKUP(T_1,Flizers,4,FALSE)*R_1+VLOOKUP(T_2,Flizers,4,FALSE)*R_2+VLOOKUP(T_3,Flizers,4,FALSE)*R_3+VLOOKUP(T_4,Flizers,4,FALSE)*R_4 -> 0 | E13: =VLOOKUP(T_1,Flizers,4,FALSE)*R_1+VLOOKUP(T_2,Flizers,4,FALSE)*R_2+VLOOKUP(T_3,Flizers,4,FALSE)*R_3+VLOOKUP(T_4,Flizers,4,FALSE)*R_4 -> 0 | F13: =VLOOKUP(T_1,Flizers,4,FALSE)*R_1+VLOOKUP(T_2,Flizers,4,FALSE)*R_2+VLOOKUP(T_3,Flizers,4,FALSE)*R_3+VLOOKUP(T_4,Flizers,4,FALSE)*R_4 -> 4.4 | G13: =VLOOKUP(T_1,Flizers,4,FALSE)*R_1+VLOOKUP(T_2,Flizers,4,FALSE)*R_2+VLOOKUP(T_3,Flizers,4,FALSE)*R_3+VLOOKUP(T_4,Flizers,4,FALSE)*R_4 -> 24 | H13: =VLOOKUP(T_1,Flizers,4,FALSE)*R_1+VLOOKUP(T_2,Flizers,4,FALSE)*R_2+VLOOKUP(T_3,Flizers,4,FALSE)*R_3+VLOOKUP(T_4,Flizers,4,FALSE)*R_4
A14: S | B14: total S contribution | C14: lb S/ac | D14: =VLOOKUP(T_1,Flizers,5,FALSE)*R_1+VLOOKUP(T_2,Flizers,5,FALSE)*R_2+VLOOKUP(T_3,Flizers,5,FALSE)*R_3+VLOOKUP(T_4,Flizers,5,FALSE)*R_4 -> 3.4 | E14: =VLOOKUP(T_1,Flizers,5,FALSE)*R_1+VLOOKUP(T_2,Flizers,5,FALSE)*R_2+VLOOKUP(T_3,Flizers,5,FALSE)*R_3+VLOOKUP(T_4,Flizers,5,FALSE)*R_4 -> 3.4 | F14: =VLOOKUP(T_1,Flizers,5,FALSE)*R_1+VLOOKUP(T_2,Flizers,5,FALSE)*R_2+VLOOKUP(T_3,Flizers,5,FALSE)*R_3+VLOOKUP(T_4,Flizers,5,FALSE)*R_4 -> 4.2 | G14: =VLOOKUP(T_1,Flizers,5,FALSE)*R_1+VLOOKUP(T_2,Flizers,5,FALSE)*R_2+VLOOKUP(T_3,Flizers,5,FALSE)*R_3+VLOOKUP(T_4,Flizers,5,FALSE)*R_4 -> 3.4 | H14: =VLOOKUP(T_1,Flizers,5,FALSE)*R_1+VLOOKUP(T_2,Flizers,5,FALSE)*R_2+VLOOKUP(T_3,Flizers,5,FALSE)*R_3+VLOOKUP(T_4,Flizers,5,FALSE)*R_4
A15: CPA | B15: cost per acre | C15: $/ac | D15: =(R_1*VLOOKUP(T_1,Flizers,6,FALSE)+R_2*VLOOKUP(T_2,Flizers,6,FALSE)+R_3*VLOOKUP(T_3,Flizers,6,FALSE)+R_4*VLOOKUP(T_4,Flizers,6,FALSE))/2000 -> 48.78 | E15: =(R_1*VLOOKUP(T_1,Flizers,6,FALSE)+R_2*VLOOKUP(T_2,Flizers,6,FALSE)+R_3*VLOOKUP(T_3,Flizers,6,FALSE)+R_4*VLOOKUP(T_4,Flizers,6,FALSE))/2000 -> 52.37 | F15: =(R_1*VLOOKUP(T_1,Flizers,6,FALSE)+R_2*VLOOKUP(T_2,Flizers,6,FALSE)+R_3*VLOOKUP(T_3,Flizers,6,FALSE)+R_4*VLOOKUP(T_4,Flizers,6,FALSE))/2000 -> 63.65 | G15: =(R_1*VLOOKUP(T_1,Flizers,6,FALSE)+R_2*VLOOKUP(T_2,Flizers,6,FALSE)+R_3*VLOOKUP(T_3,Flizers,6,FALSE)+R_4*VLOOKUP(T_4,Flizers,6,FALSE))/2000 -> 41.58 | H15: =(R_1*VLOOKUP(T_1,Flizers,6,FALSE)+R_2*VLOOKUP(T_2,Flizers,6,FALSE)+R_3*VLOOKUP(T_3,Flizers,6,FALSE)+R_4*VLOOKUP(T_4,Flizers,6,FALSE))/2000
A18: FERTILIZER COMPOSITION AND PRICE TABLE
A19: Name | B19: N (fraction) | C19: P2O5 (fraction) | D19: K20 (fraction) | E19: S (fraction) | F19: Price ($/ton)
A20: 82-0-0, anhydrous ammonia | B20: 0.82 | C20: 0 | D20: 0 | E20: 0 | F20: 430
A21: 46-0-0, urea | B21: 0.46 | C21: 0 | D21: 0 | E21: 0 | F21: 350
A22: 33.5-0-0, ammonium nitrate | B22: 0.335 | C22: 0 | D22: 0 | E22: 0 | F22: 250
A23: 32-0-0, 32% urea ammonium nitrate | B23: 0.32 | C23: 0 | D23: 0 | E23: 0 | F23: 245
A24: 28-0-0, 28% urea ammonium nitrate | B24: 0.28 | C24: 0 | D24: 0 | E24: 0 | F24: 210
A25: 21-0-0, ammonium sulfate | B25: 0.21 | C25: 0 | D25: 0 | E25: 0 | F25: 150
A26: 18-46-0, diammonium phosphate | B26: 0.18 | C26: 0.46 | D26: 0 | E26: 0 | F26: 430
A27: 16-20-0, ammonium phosphate sulfate | B27: 0.16 | C27: 0.2 | D27: 0 | E27: 0 | F27: 300
A28: 11-52-0, monoammonium phosphate | B28: 0.11 | C28: 0.52 | D28: 0 | E28: 0 | F28: 400
A29: 10-34-0, ammonium polyphosphate | B29: 0.1 | C29: 0.34 | D29: 0 | E29: 0 | F29: 380
A30: 0-46-0, triple superphosphate | B30: 0 | C30: 0.46 | D30: 0 | E30: 0 | F30: 410
A31: 0-0-60, muriate of potash | B31: 0 | C31: 0 | D31: 0.6 | E31: 0 | F31: 330
A32: 9-18-9, starter | B32: 0.09 | C32: 0.18 | D32: 0.09 | E32: 0 | F32: 290
A33: 7-21-7, starter | B33: 0.07 | C33: 0.21 | D33: 0.07 | E33: 0 | F33: 290
A34: 12-0-0. ammonium thiosulfate | B34: 12 | C34: 0 | D34: 0 | E34: 0.26 | F34: 400
A35: 0-0-0-17, ground gypsum | B35: 0 | C35: 0 | D35: 0 | E35: 0.17 | F35: 62
A36: 0-0-0-17, pelleted gypsum | B36: 0 | C36: 0 | D36: 0 | E36: 0.17 | F36: 58
A37: 0-0-0-22-21, K-Mag | B37: 0 | C37: 0 | D37: 0.22 | E37: 0.21 | F37: 450
